[Event "*** Titled Tuesday Blitz"]
[Site "Chess.com"]
[Date "2020.11.10"]
[Round "10"]
[White "Vuk2000"]
[Black "Fandorine"]
[Result "1-0"]
[WhiteElo "2704"]
[BlackElo "2820"]
[TimeControl "180+1"]
[EndTime "12:03:47 PST"]
[Termination "Vuk2000 won by resignation"]

1. d4 {[%clk 0:03:00.9]} 1... Nf6 {[%clk 0:02:59.9]} 2. Bg5 {[%clk 0:03:01.2]}
2... g6 {[%clk 0:02:59.6]} 3. Bxf6 {[%clk 0:03:01.1]} 3... exf6 {[%clk
0:03:00.5]} 4. c4 {[%clk 0:03:01.8]} 4... d5 {[%clk 0:03:00.8]} 5. cxd5 {[%clk
0:03:01.3]} 5... Qxd5 {[%clk 0:03:01.7]} 6. Nc3 {[%clk 0:03:01.8]} 6... Bb4
{[%clk 0:03:01.9]} 7. e3 {[%clk 0:03:00.4]} 7... c5 {[%clk 0:03:00.3]} 8. Qa4+
{[%clk 0:02:43.2]} 8... Nc6 {[%clk 0:03:00.1]} 9. Qxb4 {[%clk 0:02:32.4]} 9...
Nxb4 {[%clk 0:03:01]} 10. Nxd5 {[%clk 0:02:32.3]} 10... Nxd5 {[%clk 0:03:00.3]}
11. dxc5 {[%clk 0:02:30.1]} 11... Nb4 {[%clk 0:02:53]} 12. Kd2 {[%clk
0:01:54.8]} 12... Be6 {[%clk 0:02:46.7]} 13. Bb5+ {[%clk 0:01:42.8]} 13... Ke7
{[%clk 0:02:46.6]} 14. Ne2 {[%clk 0:01:41.4]} 14... Bxa2 {[%clk 0:02:18.4]} 15.
Nd4 {[%clk 0:01:22.4]} 15... Be6 {[%clk 0:02:12.2]} 16. Ra4 {[%clk 0:01:11.9]}
16... Nd5 {[%clk 0:02:07.6]} 17. c6 {[%clk 0:01:02.1]} 17... bxc6 {[%clk
0:01:53.3]} 18. Bxc6 {[%clk 0:00:57.3]} 18... Rab8 {[%clk 0:01:49.4]} 19. Rxa7+
{[%clk 0:00:53.7]} 19... Kd6 {[%clk 0:01:49.9]} 20. b3 {[%clk 0:00:40.4]} 20...
Nb4 {[%clk 0:01:35.7]} 21. Bf3 {[%clk 0:00:26.8]} 21... Rhc8 {[%clk 0:01:36.1]}
22. Rha1 {[%clk 0:00:23.5]} 22... f5 {[%clk 0:01:30.9]} 23. R1a5 {[%clk
0:00:23.1]} 23... Bd7 {[%clk 0:01:27.5]} 24. h4 {[%clk 0:00:20.4]} 24... h5
{[%clk 0:01:25.1]} 25. g3 {[%clk 0:00:20.2]} 25... Rb6 {[%clk 0:01:25.4]} 26.
Rb7 {[%clk 0:00:15.1]} 26... Rxb7 {[%clk 0:01:17.4]} 27. Bxb7 {[%clk 0:00:16]}
27... Rb8 {[%clk 0:01:10.1]} 28. Bf3 {[%clk 0:00:16]} 28... Rb6 {[%clk
0:01:09.7]} 29. Kc3 {[%clk 0:00:15.8]} 29... Be8 {[%clk 0:00:53.9]} 30. Ra7
{[%clk 0:00:10.6]} 30... Bd7 {[%clk 0:00:49]} 31. Kc4 {[%clk 0:00:05.9]} 31...
Na6 {[%clk 0:00:41.2]} 32. Rb7 {[%clk 0:00:05.1]} 32... Rxb7 {[%clk 0:00:38.8]}
33. Bxb7 {[%clk 0:00:06]} 33... Nc5 {[%clk 0:00:38.2]} 34. Bd5 {[%clk
0:00:06.6]} 34... Be8 {[%clk 0:00:36]} 35. b4 {[%clk 0:00:06.3]} 35... Na4
{[%clk 0:00:36.2]} 36. Bf3 {[%clk 0:00:06.3]} 36... Nb6+ {[%clk 0:00:35.9]} 37.
Kc3 {[%clk 0:00:06.3]} 37... Bd7 {[%clk 0:00:34.5]} 38. Ne2 {[%clk 0:00:05.9]}
38... Na4+ {[%clk 0:00:27.1]} 39. Kd4 {[%clk 0:00:05.7]} 39... Nb6 {[%clk
0:00:28]} 40. Nf4 {[%clk 0:00:05.7]} 40... Be8 {[%clk 0:00:26.1]} 41. Nd3 {[%clk
0:00:05.4]} 41... Nd7 {[%clk 0:00:25.5]} 42. Nb2 {[%clk 0:00:05.3]} 42... Nf8
{[%clk 0:00:23]} 43. Nc4+ {[%clk 0:00:05]} 43... Ke7 {[%clk 0:00:23.5]} 44. Kc5
{[%clk 0:00:04.3]} 44... Ne6+ {[%clk 0:00:23.6]} 45. Kb6 {[%clk 0:00:05]} 45...
f6 {[%clk 0:00:22.3]} 46. b5 {[%clk 0:00:05.1]} 46... g5 {[%clk 0:00:22.8]} 47.
Bc6 {[%clk 0:00:04.1]} 47... Bf7 {[%clk 0:00:23.2]} 48. Na5 {[%clk 0:00:03.9]}
48... f4 {[%clk 0:00:22.8]} 49. Ka7 {[%clk 0:00:03.7]} 49... fxe3 {[%clk
0:00:15.2]} 50. fxe3 {[%clk 0:00:03.7]} 50... Nc5 {[%clk 0:00:12.5]} 51. b6
{[%clk 0:00:03.1]} 51... Kd6 {[%clk 0:00:12.8]} 52. Bf3 {[%clk 0:00:02.9]} 52...
Ke5 {[%clk 0:00:13.3]} 53. Nc6+ {[%clk 0:00:01.9]} 53... Kd6 {[%clk 0:00:11.4]}
54. Nd4 {[%clk 0:00:01.9]} 54... g4 {[%clk 0:00:08.6]} 55. Bg2 {[%clk
0:00:01.2]} 55... Ke5 {[%clk 0:00:06.8]} 56. b7 {[%clk 0:00:01.8]} 56... Nxb7
{[%clk 0:00:06.8]} 57. Kxb7 {[%clk 0:00:02.7]} 57... f5 {[%clk 0:00:05.3]} 58.
Kc6 {[%clk 0:00:02.3]} 58... Ba2 {[%clk 0:00:04.9]} 59. Kc5 {[%clk 0:00:02.8]}
59... Bb1 {[%clk 0:00:05.4]} 60. Bc6 {[%clk 0:00:03.3]} 60... Be4 {[%clk
0:00:05.7]} 61. Kc4 {[%clk 0:00:03.8]} 61... Bxc6 {[%clk 0:00:05.6]} 62. Nxc6+
{[%clk 0:00:04.4]} 62... Ke4 {[%clk 0:00:06.5]} 63. Ne7 {[%clk 0:00:04.8]} 63...
f4 {[%clk 0:00:03.3]} 64. exf4 {[%clk 0:00:04.9]} 64... Kf3 {[%clk 0:00:03.9]}
65. f5 {[%clk 0:00:05.5]} 65... Ke4 {[%clk 0:00:04.8]} 66. f6 {[%clk 0:00:05.9]}
66... Kf3 {[%clk 0:00:05.7]} 67. Nf5 {[%clk 0:00:06]} 67... Kg2 {[%clk
0:00:06.6]} 1-0

[Event "*** Titled Tuesday Blitz"]
[Site "Chess.com"]
[Date "2020.11.10"]
[Round "10"]
[White "Chessalary"]
[Black "Rakhimzhan_Alen"]
[Result "1-0"]
[WhiteElo "2480"]
[BlackElo "2607"]
[TimeControl "180+1"]
[EndTime "12:03:49 PST"]
[Termination "Chessalary won by resignation"]

1. e4 {[%clk 0:03:00.7]} 1... e5 {[%clk 0:02:58.9]} 2. Nf3 {[%clk 0:03:00.3]}
2... Nc6 {[%clk 0:02:58.6]} 3. Bc4 {[%clk 0:03:00.8]} 3... Bc5 {[%clk
0:02:56.8]} 4. O-O {[%clk 0:02:59.6]} 4... Nf6 {[%clk 0:02:57]} 5. d3 {[%clk
0:02:59.6]} 5... d6 {[%clk 0:02:56.8]} 6. c3 {[%clk 0:02:59.4]} 6... O-O {[%clk
0:02:54.2]} 7. h3 {[%clk 0:02:59.5]} 7... h6 {[%clk 0:02:53.2]} 8. Nbd2 {[%clk
0:02:55.3]} 8... a5 {[%clk 0:02:52.4]} 9. a4 {[%clk 0:02:54.9]} 9... Bb6 {[%clk
0:02:49.4]} 10. Bb3 {[%clk 0:02:54]} 10... Ne7 {[%clk 0:02:49.3]} 11. d4 {[%clk
0:02:48.2]} 11... Ng6 {[%clk 0:02:45.5]} 12. dxe5 {[%clk 0:02:47.5]} 12... Nxe5
{[%clk 0:02:39.3]} 13. Nxe5 {[%clk 0:02:46.4]} 13... dxe5 {[%clk 0:02:39.5]} 14.
Qe2 {[%clk 0:02:44.3]} 14... Qe7 {[%clk 0:02:37.2]} 15. Nf3 {[%clk 0:02:40.2]}
15... Bd7 {[%clk 0:02:33.2]} 16. Nh4 {[%clk 0:02:28.6]} 16... Be6 {[%clk
0:02:31.7]} 17. Bxe6 {[%clk 0:02:25.4]} 17... Qxe6 {[%clk 0:02:31]} 18. Nf5
{[%clk 0:02:25.3]} 18... Rfe8 {[%clk 0:02:07.9]} 19. Be3 {[%clk 0:02:11.3]}
19... Bxe3 {[%clk 0:02:07.2]} 20. Qxe3 {[%clk 0:02:12.2]} 20... Nd7 {[%clk
0:01:57.2]} 21. Rad1 {[%clk 0:02:02.8]} 21... Nf8 {[%clk 0:01:56.3]} 22. h4
{[%clk 0:01:53.3]} 22... Rad8 {[%clk 0:01:41.9]} 23. Qg3 {[%clk 0:01:47.4]}
23... Qf6 {[%clk 0:01:36.7]} 24. Qf3 {[%clk 0:01:19.8]} 24... Ne6 {[%clk
0:01:30.9]} 25. Rd5 {[%clk 0:01:00.3]} 25... b6 {[%clk 0:01:04.7]} 26. Rfd1
{[%clk 0:00:58]} 26... Nf4 {[%clk 0:01:03.3]} 27. Rxd8 {[%clk 0:00:49.8]} 27...
Rxd8 {[%clk 0:01:04.2]} 28. Rxd8+ {[%clk 0:00:48.4]} 28... Qxd8 {[%clk
0:01:05.1]} 29. g3 {[%clk 0:00:46.7]} 29... Ne6 {[%clk 0:00:55.4]} 30. Qe2
{[%clk 0:00:46.4]} 30... Qd7 {[%clk 0:00:49.4]} 31. Qg4 {[%clk 0:00:41.8]} 31...
Kf8 {[%clk 0:00:43.3]} 32. Nxg7 {[%clk 0:00:35.5]} 32... Qxa4 {[%clk 0:00:33.4]}
33. Nxe6+ {[%clk 0:00:33.4]} 33... fxe6 {[%clk 0:00:32.9]} 34. Qxe6 {[%clk
0:00:34.1]} 34... Qa1+ {[%clk 0:00:31.6]} 35. Kg2 {[%clk 0:00:34.4]} 35... Qxb2
{[%clk 0:00:31.9]} 36. Qxe5 {[%clk 0:00:34.3]} 36... Qb3 {[%clk 0:00:27.7]} 37.
Qxc7 {[%clk 0:00:32.4]} 37... a4 {[%clk 0:00:27.8]} 38. Qd6+ {[%clk 0:00:28.5]}
38... Ke8 {[%clk 0:00:27.2]} 39. e5 {[%clk 0:00:23.2]} 39... Kf7 {[%clk
0:00:19.6]} 40. Qd7+ {[%clk 0:00:21.7]} 40... Kg6 {[%clk 0:00:19.6]} 41. g4
{[%clk 0:00:20]} 41... h5 {[%clk 0:00:16.9]} 42. Qf5+ {[%clk 0:00:18.5]} 42...
Kg7 {[%clk 0:00:17.4]} 43. e6 {[%clk 0:00:17.5]} 43... Qc4 {[%clk 0:00:15.1]}
44. gxh5 {[%clk 0:00:13.3]} 44... a3 {[%clk 0:00:12.6]} 45. Qf7+ {[%clk
0:00:12.3]} 45... Kh8 {[%clk 0:00:12.4]} 46. Qf6+ {[%clk 0:00:12.5]} 46... Kh7
{[%clk 0:00:11.2]} 47. Qf5+ {[%clk 0:00:10.2]} 47... Kg7 {[%clk 0:00:10.2]} 48.
e7 {[%clk 0:00:10.2]} 48... Qc6+ {[%clk 0:00:08]} 49. f3 {[%clk 0:00:10.7]}
49... Qe8 {[%clk 0:00:06.5]} 50. Qe5+ {[%clk 0:00:06.7]} 50... Kf7 {[%clk
0:00:06.6]} 51. h6 {[%clk 0:00:06.4]} 51... a2 {[%clk 0:00:04.6]} 52. h7 {[%clk
0:00:05.1]} 52... a1=Q {[%clk 0:00:04.5]} 53. Qh5+ {[%clk 0:00:05.3]} 53... Kxe7
{[%clk 0:00:04.2]} 54. Qxe8+ {[%clk 0:00:06.2]} 54... Kxe8 {[%clk 0:00:05.1]}
55. h8=Q+ {[%clk 0:00:06.4]} 55... Kf7 {[%clk 0:00:06]} 56. Qe5 {[%clk
0:00:05.9]} 56... Qb2+ {[%clk 0:00:05.9]} 57. Kg3 {[%clk 0:00:06.4]} 57... Qb1
{[%clk 0:00:06]} 58. h5 {[%clk 0:00:06.6]} 58... Kg8 {[%clk 0:00:06.2]} 59. Kg4
{[%clk 0:00:05]} 59... Kh7 {[%clk 0:00:05.5]} 60. Qf5+ {[%clk 0:00:04.2]} 60...
Qxf5+ {[%clk 0:00:04.7]} 61. Kxf5 {[%clk 0:00:05.1]} 61... Kh6 {[%clk
0:00:05.1]} 62. Ke6 {[%clk 0:00:05.2]} 62... Kxh5 {[%clk 0:00:05.8]} 63. f4
{[%clk 0:00:05.9]} 1-0

[Event "*** Titled Tuesday Blitz"]
[Site "Chess.com"]
[Date "2020.11.10"]
[Round "10"]
[White "DonPreuss"]
[Black "ErikBlomqvist"]
[Result "0-1"]
[WhiteElo "2227"]
[BlackElo "2436"]
[TimeControl "180+1"]
[EndTime "12:03:49 PST"]
[Termination "ErikBlomqvist won by resignation"]

1. d4 {[%clk 0:03:00.9]} 1... Nf6 {[%clk 0:02:59.9]} 2. Nc3 {[%clk 0:03:00.4]}
2... e6 {[%clk 0:03:00.5]} 3. e4 {[%clk 0:02:57.3]} 3... d5 {[%clk 0:02:58.4]}
4. exd5 {[%clk 0:02:56.8]} 4... Nfd7 {[%clk 0:02:59]} 5. dxe6 {[%clk 0:02:55.4]}
5... fxe6 {[%clk 0:02:59.9]} 6. Bd3 {[%clk 0:02:49.9]} 6... Nf6 {[%clk
0:02:59.7]} 7. Nf3 {[%clk 0:02:47.5]} 7... Bd6 {[%clk 0:02:58.9]} 8. O-O {[%clk
0:02:46.1]} 8... O-O {[%clk 0:02:59.1]} 9. Bg5 {[%clk 0:02:44.9]} 9... Nc6
{[%clk 0:02:56]} 10. Qd2 {[%clk 0:02:42]} 10... Qe8 {[%clk 0:02:48.5]} 11. Rae1
{[%clk 0:02:37]} 11... Qh5 {[%clk 0:02:48.3]} 12. Bf4 {[%clk 0:02:36.9]} 12...
Bd7 {[%clk 0:02:01.8]} 13. Bxd6 {[%clk 0:01:48.9]} 13... cxd6 {[%clk 0:02:01.7]}
14. Ne4 {[%clk 0:01:43.6]} 14... Nxe4 {[%clk 0:01:52.3]} 15. Rxe4 {[%clk
0:01:37.2]} 15... Rxf3 {[%clk 0:01:52.1]} 16. gxf3 {[%clk 0:01:32.9]} 16... Rf8
{[%clk 0:01:43.7]} 17. Rg4 {[%clk 0:01:27.6]} 17... e5 {[%clk 0:01:34.5]} 18.
Bc4+ {[%clk 0:00:45.9]} 18... Kh8 {[%clk 0:01:33.9]} 19. Qg5 {[%clk 0:00:26.7]}
19... Bxg4 {[%clk 0:01:32.4]} 20. Qxg4 {[%clk 0:00:27.3]} 20... Qe8 {[%clk
0:00:51.7]} 21. c3 {[%clk 0:00:21.4]} 21... Rf4 {[%clk 0:00:32.4]} 22. Qe6
{[%clk 0:00:18.1]} 22... Qf8 {[%clk 0:00:25.4]} 23. Be2 {[%clk 0:00:11.9]} 23...
exd4 {[%clk 0:00:22.4]} 24. cxd4 {[%clk 0:00:11.1]} 24... Nxd4 {[%clk
0:00:22.7]} 25. Qe3 {[%clk 0:00:10.4]} 25... h6 {[%clk 0:00:16]} 26. Bd1 {[%clk
0:00:08.8]} 26... Rh4 {[%clk 0:00:10.4]} 27. Re1 {[%clk 0:00:08.5]} 27... Qf6
{[%clk 0:00:04.6]} 28. Qe8+ {[%clk 0:00:08.4]} 28... Kh7 {[%clk 0:00:05.1]} 29.
Kh1 {[%clk 0:00:07]} 29... Qf4 {[%clk 0:00:04.1]} 30. Qe4+ {[%clk 0:00:06.9]}
30... Qxe4 {[%clk 0:00:04.5]} 31. Rxe4 {[%clk 0:00:07.3]} 31... Rxe4 {[%clk
0:00:04.8]} 32. fxe4 {[%clk 0:00:08]} 32... Kg6 {[%clk 0:00:05.7]} 33. f4 {[%clk
0:00:07.7]} 33... Kf6 {[%clk 0:00:05.5]} 34. Kg1 {[%clk 0:00:07.9]} 34... g5
{[%clk 0:00:05.9]} 35. f5 {[%clk 0:00:07.3]} 35... Ke5 {[%clk 0:00:05.7]} 36.
Kf2 {[%clk 0:00:06.9]} 36... Kxe4 {[%clk 0:00:04.8]} 37. f6 {[%clk 0:00:06.7]}
37... Ke5 {[%clk 0:00:02.8]} 38. f7 {[%clk 0:00:06.7]} 38... Ne6 {[%clk
0:00:03.4]} 39. Bg4 {[%clk 0:00:05.9]} 39... Nf8 {[%clk 0:00:03.3]} 40. Ke3
{[%clk 0:00:05.6]} 40... Kf6 {[%clk 0:00:03.5]} 41. Bh5 {[%clk 0:00:05.6]} 41...
Ke5 {[%clk 0:00:03.2]} 42. Kd3 {[%clk 0:00:05.7]} 42... d5 {[%clk 0:00:03.5]}
43. Ke3 {[%clk 0:00:05.9]} 43... Nd7 {[%clk 0:00:04]} 44. Bg6 {[%clk 0:00:05]}
44... Nf8 {[%clk 0:00:03.9]} 45. Bh5 {[%clk 0:00:05.3]} 45... b6 {[%clk
0:00:04]} 46. b4 {[%clk 0:00:04.6]} 46... a5 {[%clk 0:00:04.9]} 47. bxa5 {[%clk
0:00:04.2]} 47... bxa5 {[%clk 0:00:05.8]} 48. a3 {[%clk 0:00:04.1]} 48... Nh7
{[%clk 0:00:04.9]} 49. Kd3 {[%clk 0:00:03.6]} 49... Nf8 {[%clk 0:00:04.5]} 50.
Ke3 {[%clk 0:00:03.8]} 50... Kd6 {[%clk 0:00:02.7]} 51. Kd4 {[%clk 0:00:03.9]}
51... Ne6+ {[%clk 0:00:03.4]} 52. Kd3 {[%clk 0:00:04.3]} 52... Ke5 {[%clk
0:00:03.7]} 53. Ke3 {[%clk 0:00:04]} 53... d4+ {[%clk 0:00:03.5]} 54. Kd2 {[%clk
0:00:04.1]} 54... Ke4 {[%clk 0:00:03.1]} 55. Bg4 {[%clk 0:00:04.5]} 55... Nf8
{[%clk 0:00:02.2]} 56. Bh5 {[%clk 0:00:04.1]} 56... Kf4 {[%clk 0:00:02]} 57. h3
{[%clk 0:00:04.2]} 57... Ke5 {[%clk 0:00:02.2]} 58. Kd3 {[%clk 0:00:04.6]} 58...
Kd5 {[%clk 0:00:02.9]} 59. Kd2 {[%clk 0:00:04.8]} 59... Kc4 {[%clk 0:00:02]} 60.
Kc2 {[%clk 0:00:05.2]} 60... a4 {[%clk 0:00:01.9]} 61. Bg4 {[%clk 0:00:04.6]}
61... d3+ {[%clk 0:00:02.2]} 62. Kd2 {[%clk 0:00:04.5]} 62... Kd4 {[%clk
0:00:02.5]} 63. Bf5 {[%clk 0:00:04.8]} 63... Kc4 {[%clk 0:00:02.1]} 64. Bxd3+
{[%clk 0:00:05.3]} 64... Kb3 {[%clk 0:00:03]} 65. Bf5 {[%clk 0:00:03.8]} 65...
Kxa3 {[%clk 0:00:03.6]} 66. Kd3 {[%clk 0:00:04.3]} 66... Kb2 {[%clk 0:00:03.5]}
67. Kd4 {[%clk 0:00:05.2]} 67... a3 {[%clk 0:00:04.3]} 68. Ke5 {[%clk
0:00:02.3]} 68... a2 {[%clk 0:00:04.7]} 69. Be6 {[%clk 0:00:03]} 69... a1=Q
{[%clk 0:00:04.6]} 0-1

[Event "*** Titled Tuesday Blitz"]
[Site "Chess.com"]
[Date "2020.11.10"]
[Round "10"]
[White "Jospem"]
[Black "BogdanDeac"]
[Result "0-1"]
[WhiteElo "2910"]
[BlackElo "2827"]
[TimeControl "180+1"]
[EndTime "12:03:54 PST"]
[Termination "BogdanDeac won by checkmate"]

1. e4 {[%clk 0:03:00.7]} 1... e5 {[%clk 0:02:59.9]} 2. Nf3 {[%clk 0:03:00.3]}
2... Nc6 {[%clk 0:03:00.5]} 3. Bb5 {[%clk 0:03:00.5]} 3... Nf6 {[%clk
0:03:00.2]} 4. d3 {[%clk 0:03:00.7]} 4... Bc5 {[%clk 0:03:00.2]} 5. c3 {[%clk
0:03:01.3]} 5... d5 {[%clk 0:03:00.8]} 6. Nbd2 {[%clk 0:02:58.8]} 6... dxe4
{[%clk 0:03:00.8]} 7. dxe4 {[%clk 0:02:59.4]} 7... O-O {[%clk 0:03:01.4]} 8. O-O
{[%clk 0:02:59.4]} 8... a5 {[%clk 0:03:01.1]} 9. a3 {[%clk 0:02:59.4]} 9... Qe7
{[%clk 0:02:33]} 10. Rb1 {[%clk 0:02:58.2]} 10... Rd8 {[%clk 0:02:32.4]} 11. Qc2
{[%clk 0:02:56.1]} 11... Bd7 {[%clk 0:00:31.6]} 12. b4 {[%clk 0:02:46.4]} 12...
axb4 {[%clk 0:00:31.3]} 13. axb4 {[%clk 0:02:46.9]} 13... Bd6 {[%clk 0:00:31.6]}
14. Be2 {[%clk 0:02:44.4]} 14... Bg4 {[%clk 0:00:25.8]} 15. Nc4 {[%clk 0:02:41]}
15... Bh5 {[%clk 0:00:23.8]} 16. Bg5 {[%clk 0:02:03.2]} 16... h6 {[%clk
0:00:22.6]} 17. Bh4 {[%clk 0:02:03.5]} 17... g5 {[%clk 0:00:19.8]} 18. Bg3
{[%clk 0:02:03.3]} 18... Bg6 {[%clk 0:00:20]} 19. Nfd2 {[%clk 0:01:58.6]} 19...
Nh5 {[%clk 0:00:20.2]} 20. Ne3 {[%clk 0:01:54.5]} 20... Nf4 {[%clk 0:00:19.4]}
21. Bc4 {[%clk 0:01:50.9]} 21... h5 {[%clk 0:00:16.3]} 22. h3 {[%clk 0:01:47.4]}
22... Nb8 {[%clk 0:00:16.4]} 23. Nf5 {[%clk 0:01:46.5]} 23... Qf6 {[%clk
0:00:15.3]} 24. Rfe1 {[%clk 0:01:38.6]} 24... Nd7 {[%clk 0:00:15.4]} 25. Nf1
{[%clk 0:01:38.9]} 25... Nb6 {[%clk 0:00:12.2]} 26. Bb3 {[%clk 0:01:38.9]} 26...
c5 {[%clk 0:00:10]} 27. N1e3 {[%clk 0:01:35]} 27... cxb4 {[%clk 0:00:07.8]} 28.
cxb4 {[%clk 0:01:35.9]} 28... Bxf5 {[%clk 0:00:05.6]} 29. Nxf5 {[%clk
0:01:34.4]} 29... Bf8 {[%clk 0:00:05.6]} 30. h4 {[%clk 0:01:30.1]} 30... g4
{[%clk 0:00:05.2]} 31. Red1 {[%clk 0:01:19.7]} 31... Ne6 {[%clk 0:00:05.4]} 32.
Qb2 {[%clk 0:01:14.8]} 32... Nd4 {[%clk 0:00:04.6]} 33. Nxd4 {[%clk 0:01:15.3]}
33... exd4 {[%clk 0:00:04.9]} 34. e5 {[%clk 0:01:16]} 34... Qg6 {[%clk
0:00:05.1]} 35. e6 {[%clk 0:01:07.4]} 35... fxe6 {[%clk 0:00:04.9]} 36. Re1
{[%clk 0:01:08.1]} 36... Nd5 {[%clk 0:00:04.5]} 37. Qxd4 {[%clk 0:01:05.6]}
37... Bxb4 {[%clk 0:00:04.7]} 38. Rec1 {[%clk 0:00:31.5]} 38... Ba3 {[%clk
0:00:05]} 39. Bc2 {[%clk 0:00:27.1]} 39... Qf6 {[%clk 0:00:03.9]} 40. Be5 {[%clk
0:00:27]} 40... Qf7 {[%clk 0:00:03.8]} 41. Rd1 {[%clk 0:00:24.7]} 41... Rac8
{[%clk 0:00:04]} 42. Be4 {[%clk 0:00:14.7]} 42... Bc5 {[%clk 0:00:03.8]} 43. Qb2
{[%clk 0:00:15.4]} 43... Ne7 {[%clk 0:00:02.8]} 44. Rxd8+ {[%clk 0:00:10.2]}
44... Rxd8 {[%clk 0:00:03.7]} 45. Rc1 {[%clk 0:00:11.1]} 45... b6 {[%clk
0:00:03.2]} 46. Re1 {[%clk 0:00:09.4]} 46... Rf8 {[%clk 0:00:03.5]} 47. Bg3
{[%clk 0:00:09.3]} 47... Nf5 {[%clk 0:00:03.6]} 48. Bxf5 {[%clk 0:00:09.8]}
48... exf5 {[%clk 0:00:04]} 49. Bf4 {[%clk 0:00:06]} 49... Re8 {[%clk
0:00:03.7]} 50. Rd1 {[%clk 0:00:04.1]} 50... Qe6 {[%clk 0:00:04]} 51. Qc2 {[%clk
0:00:03.6]} 51... Kf7 {[%clk 0:00:03.8]} 52. g3 {[%clk 0:00:03.3]} 52... Kg6
{[%clk 0:00:04.1]} 53. Qc1 {[%clk 0:00:02.8]} 53... Qe4 {[%clk 0:00:04]} 54. Rf1
{[%clk 0:00:02.9]} 54... Qf3 {[%clk 0:00:04]} 55. Bc7 {[%clk 0:00:03.3]} 55...
Re2 {[%clk 0:00:03.8]} 56. Qg5+ {[%clk 0:00:03.7]} 56... Kf7 {[%clk 0:00:03.2]}
57. Qxh5+ {[%clk 0:00:04.3]} 57... Ke7 {[%clk 0:00:02.5]} 58. Qh7+ {[%clk
0:00:03.4]} 58... Ke6 {[%clk 0:00:02.9]} 59. Qg8+ {[%clk 0:00:02.3]} 59... Kd7
{[%clk 0:00:02.9]} 60. Rd1+ {[%clk 0:00:02.7]} 60... Kxc7 {[%clk 0:00:01.4]} 61.
Qd8+ {[%clk 0:00:02.5]} 61... Kb7 {[%clk 0:00:01.8]} 62. Qd7+ {[%clk 0:00:03.1]}
62... Kb8 {[%clk 0:00:02.1]} 63. Qd8+ {[%clk 0:00:02.7]} 63... Kb7 {[%clk
0:00:02.4]} 64. Qd7+ {[%clk 0:00:02.3]} 64... Ka6 {[%clk 0:00:02.7]} 65. Ra1+
{[%clk 0:00:01.1]} 65... Ba3 {[%clk 0:00:03]} 66. Qc8+ {[%clk 0:00:01.7]} 66...
Kb5 {[%clk 0:00:02.6]} 67. Qd7+ {[%clk 0:00:02.1]} 67... Ka5 {[%clk 0:00:02.4]}
68. Qa7+ {[%clk 0:00:01.6]} 68... Kb5 {[%clk 0:00:02.7]} 69. Qxa3 {[%clk
0:00:01.7]} 69... Qxf2+ {[%clk 0:00:02.2]} 70. Kh1 {[%clk 0:00:02.6]} 70... Qg2#
{[%clk 0:00:03.1]} 0-1